[Event "Sitges Sunway op 4th"]
[Site "Sitges"]
[Date "2017.12.23"]
[Round "9"]
[White "Bologan, Viktor"]
[Black "Dann, Matthias"]
[Result "0-1"]
[ECO "B52"]
[WhiteElo "2607"]
[BlackElo "2517"]
[Annotator "Besenthal,K"]
[PlyCount "72"]
[EventDate "2017.12.15"]
[EventType "swiss"]
[EventRounds "9"]
[EventCountry "ESP"]
[SourceTitle "EXT 2019"]
[Source "ChessBase"]
[SourceDate "2018.10.10"]
[SourceVersion "1"]
[SourceVersionDate "2018.10.10"]
[SourceQuality "1"]
[TimeControl "40/5400+30:1800+30"]

1. e4 {[%emt 0:03:34]} c5 {[%emt 0:00:25]} 2. Nf3 {[%emt 0:00:10]} d6 {[%emt 0:
00:05]} 3. Bb5+ {[%emt 0:01:33]} Bd7 {[%emt 0:00:21]} 4. c4 {[%emt 0:00:10]}
Nf6 {[%emt 0:03:56]} 5. Nc3 {[%emt 0:00:12]} g6 {[%emt 0:00:10]} 6. d4 {
[%emt 0:01:07]} cxd4 {[%emt 0:00:39]} 7. Nxd4 {[%emt 0:00:06]} Nc6 {[%emt 0:07:
01]} 8. O-O {[%emt 0:07:13]} Bg7 {[%emt 0:00:20]} 9. Bxc6 {[%emt 0:05:15]} bxc6
{[%emt 0:01:59]} 10. c5 {[%emt 0:00:36]} O-O {[%emt 0:01:36]} 11. h3 {[%emt 0:
03:10]} Qc8 {[%emt 0:20:41]} 12. Nb3 {[%emt 0:18:22]} d5 {[%emt 0:07:38]} 13.
e5 {[%emt 0:01:56]} Ne4 {[%emt 0:03:43]} 14. Qd4 {[%emt 0:02:00]} Nxc3 {
[%emt 0:04:57]} 15. Qxc3 {[%emt 0:00:07]} a5 {[%emt 0:02:04]} 16. Bf4 {[%emt 0:
03:22]} Qa6 {[%emt 0:07:55]} 17. Qd2 {[%emt 0:10:17]} Qb5 {[%emt 0:08:00]} 18.
Rac1 {[%emt 0:03:04]} Qb4 {[%emt 0:07:08]} 19. Rc3 {[%emt 0:08:55]} Rfb8 {
[%emt 0:01:14]} 20. a3 {[%emt 0:04:12]} Qb7 {[%emt 0:00:58]} 21. Rb1 {[%emt 0:
02:25]} a4 {[%emt 0:11:46]} 22. Nd4 {[%emt 0:00:23]} Qc8 {[%emt 0:00:02]} 23.
Re1 {[%emt 0:02:47]} Be6 {[%emt 0:00:51]} 24. g4 {[%emt 0:04:14]} Rb7 {[%emt 0:
00:13]} 25. Bg3 {[%emt 0:01:14]} Rab8 {[%emt 0:00:59]} 26. Rc2 {[%emt 0:00:13]}
h5 {[%emt 0:02:42]} 27. gxh5 {[%emt 0:02:51]} Bf5 {[%emt 0:01:01]} 28. Nxf5 {
[%emt 0:09:01]} Qxf5 {[%emt 0:00:05]} 29. hxg6 {[%emt 0:00:23]} fxg6 {[%emt 0:
00:27]} 30. Re2 {[%emt 0:02:29]} Qxh3 {[%emt 0:02:40]} 31. Qa5 {[%emt 0:01:15]}
Qg4 {[%emt 0:02:37]} 32. Qa6 {[%emt 0:00:07]} Rb3 {[%emt 0:00:35]} 33. Qxc6 {
[%emt 0:01:03]} e6 {[%emt 0:01:01]} 34. Qa6 {[%emt 0:02:28]} d4 {[%emt 0:00:32]
[#] Hier war Weiß wohl noch nicht verloren. Aber was soll er tun? Mit seinem
Freibauern vorstoßen oder doch lieber den Freibauern des Gegners stoppen?
Bologan versucht es mit Ersterem - das funktioniert jedoch nicht.} 35. c6 {
[%emt 0:00:19]} (35. Qc4 $1 {wäre ein probates Mittel gewesen, den Zug d4-d3
zu verhindern.}) 35... Rf8 $1 {[%emt 0:00:57] Stark gespielt. Neben d4-d3
steht plötzlich auch das Qualitätsopfer auf g3 im Raum. Und ein Fortzug des
Te2 aus der e-Linie ließe Lxe5 zu. Die Stellung ist mit einem Male unhaltbar
für Weiß.} 36. Qa5 {[%emt 0:00:48]} ({Oder} 36. c7 Rxg3+ 37. fxg3 Qxg3+ 38. Rg2
Qe1+ 39. Kh2 Bxe5+ {mit durchschlagendem Angriff.}) 36... d3 {[%emt 0:00:17]}
0-1

[Event "EU-ch 12th"]
[Site "Aix les Bains"]
[Date "2011.04.02"]
[Round "11"]
[White "Csiba, Dominik"]
[Black "Brunner, Nicolas"]
[Result "0-1"]
[ECO "B52"]
[WhiteElo "2379"]
[BlackElo "2478"]
[Annotator "Brunner,N"]
[PlyCount "72"]
[EventDate "2011.03.22"]
[EventType "swiss"]
[EventRounds "11"]
[EventCountry "FRA"]
[SourceTitle "CBM 142 Extra"]
[Source "ChessBase"]
[SourceDate "2011.06.27"]
[SourceVersion "1"]
[SourceVersionDate "2011.06.27"]
[SourceQuality "1"]
[TimeControl "40/5400+30:1800+30"]

1. e4 c5 2. Nf3 d6 3. Bb5+ Bd7 4. Bxd7+ Qxd7 5. O-O Nf6 6. e5 dxe5 7. Nxe5 Qc8
8. Qf3 e6 9. Nc3 (9. b3 Be7 10. Bb2 O-O 11. d3 Nfd7 12. Nxd7 Qxd7 13. Qg4 g6
14. Nd2 Nc6 15. Nf3 Qd5 16. Rad1 Rad8 17. c4 Qf5 18. Qxf5 gxf5 {Papp,G (2551)
-Hracek,Z (2627) EU-ch 13th Plovdiv 2012 (9) 0-1} (18... exf5 19. Rfe1 Rfe8 20.
Re3 Bf8 $11 {Arsovic})) 9... Be7 10. d3 O-O 11. Bf4 Nfd7 12. Qg3 Nc6 13. Nxc6
Qxc6 14. Ne4 {67} f5 {71} ({RR} 14... Kh8 15. Rfe1 Rad8 16. Bc7 Rde8 17. Nd6
Ra8 18. Nc4 Rac8 19. Bf4 Rfe8 20. Re4 b5 21. Ne5 Nxe5 22. Bxe5 f6 23. Bc3 b4
24. Rh4 bxc3 25. Qg6 h6 26. Rxh6+ gxh6 27. Qxh6+ Kg8 28. Qg6+ Kf8 29. Qh6+ {
Finegold,B (2494)-Robson,R (2545)/Saint Louis 2011/Mega2011 Update 22/1/2-1/2})
15. Nd6 $146 {57} ({RR} 15. Nd2 Rf6 16. Rfe1 g5 17. h4 Rg6 18. hxg5 h6 19. Nf3
hxg5 20. Be5 g4 21. Qh2 Bf6 22. Bxf6 gxf3 23. Qh8+ Kf7 24. Qxa8 Rxg2+ 25. Kh1
Nxf6 26. Rg1 Ng4 {0-1 Chan We Xuan,T (2344)-Nguyen Huynh Minh,H (2500)/Ho Chi
Minh City 2009/CBM 133 Extra}) 15... Rf6 16. Nc4 {57} Rg6 17. Qh3 Bf6 18. Rae1
Qd5 19. a4 Bd4 20. g3 Nb6 21. b3 Nxc4 22. bxc4 Qd7 23. Qg2 Re8 24. Be5 b6 25.
Bxd4 cxd4 26. a5 bxa5 27. Ra1 Qc7 28. Rfb1 Rb8 29. Rxb8+ Qxb8 30. Qc6 h5 31.
Rxa5 Qb1+ 32. Kg2 h4 {[%cal Gh4h3]} 33. Qa8+ $2 (33. Rxf5 $1 {[%cal Gc6g6]})
33... Kh7 34. Rxa7 h3+ 35. Kf3 Qd1+ 36. Kf4 Qe2 0-1

[Event "Khanty-Mansiysk FIDE GP (Women)"]
[Site "Khanty-Mansiysk"]
[Date "2014.04.11"]
[Round "3"]
[White "Muzychuk, Anna"]
[Black "Lagno, Kateryna"]
[Result "1/2-1/2"]
[ECO "B52"]
[WhiteElo "2560"]
[BlackElo "2543"]
[Annotator "ChessBase Website"]
[PlyCount "64"]
[EventDate "2014.04.09"]
[EventType "tourn"]
[EventRounds "11"]
[EventCountry "RUS"]
[EventCategory "10"]
[SourceTitle "CBM 160"]
[Source "ChessBase"]
[SourceDate "2014.05.15"]
[SourceVersion "1"]
[SourceVersionDate "2014.05.15"]
[SourceQuality "1"]
[TimeControl "40/5400+30:1800+30"]
[WhiteClock "1:30:00"]
[BlackClock "1:30:00"]

1. e4 {[%emt 0:00:00]} c5 {[%emt 0:00:00]} 2. Nf3 {[%emt 0:00:00]} d6 {[%emt 0:
00:10]} 3. Bb5+ {[%emt 0:05:13]} Bd7 {[%emt 0:00:22]} 4. Bxd7+ {[%emt 0:01:44]}
Qxd7 {[%emt 0:00:07]} 5. O-O {[%emt 0:01:29]} Nf6 {[%emt 0:00:33]} 6. e5 {
[%emt 0:01:32]} dxe5 {[%emt 0:00:21]} 7. Nxe5 {[%emt 0:00:04]} Qc8 {[%emt 0:00:
25]} 8. Qf3 {[%emt 0:08:03]} (8. Re1 Nc6 9. Nc4 e6 10. a4 Be7 11. Ra3 Qc7 12.
Rg3 g6 13. Nc3 a6 14. d3 Nd4 15. a5 Rd8 16. Rh3 O-O 17. Bh6 Rfe8 18. Qd2 Nd5
19. Kh1 Bf6 20. Ne3 Nxe3 21. fxe3 Nf5 22. Ne4 Qe7 23. Rf1 Bh4 24. Rf4 Nxh6 25.
Rfxh4 f5 26. Nxc5 Qxc5 27. Rxh6 Rd7 28. Rf3 Rc8 29. Rf2 Qe5 30. d4 Qe4 31. Kg1
e5 32. c3 Rc5 33. Rh3 Rxa5 34. Qd1 Rad5 35. Rhf3 b5 36. Qa1 R5d6 37. h3 h5 {
Rapport,R (2693)-Vachier Lagrave,M (2719) Biel 2013 1/2-1/2}) 8... e6 {[%emt 0:
01:44]} 9. d3 {[%emt 0:00:34]} Be7 {[%emt 0:06:28]} 10. Nc3 {[%emt 0:01:33]}
O-O {[%emt 0:00:57]} 11. Bg5 {[%emt 0:02:50]} Nd5 {[%emt 0:13:16]} 12. h4 {
[%emt 0:14:03]} Nc6 {[%emt 0:21:40]} 13. Nxd5 {[%emt 0:07:20]} Bxg5 {[%emt 0:
01:41]} 14. Nxc6 {[%emt 0:18:48]} Qxc6 {[%emt 0:00:31]} 15. hxg5 {[%emt 0:00:
04]} Qxd5 $146 {[%emt 0:01:58]} (15... exd5 16. Rae1 f6 17. gxf6 Rxf6 18. Qg3
Re6 19. Rxe6 Qxe6 20. Qc7 Qc6 21. Qxc6 bxc6 22. c4 Re8 23. cxd5 cxd5 24. Rc1
Rc8 25. Re1 a5 26. Re5 a4 27. Rxd5 Rb8 28. b3 axb3 29. axb3 Rxb3 30. Kf1 Rc3
31. Rd7 c4 32. dxc4 Rxc4 33. g3 h6 34. Kg2 Kh7 35. f4 h5 36. Kh3 Kh6 37. Rd6+
g6 38. Rb6 {1/2-1/2 (38) Rogos,J (2255)-Valutanu,M (2058) ICCF email 2009}) 16.
Qxd5 {[%emt 0:06:30]} exd5 {[%emt 0:00:05]} 17. Rfe1 {[%emt 0:00:08]} Rfe8 {
[%emt 0:00:15]} 18. f4 {[%emt 0:01:40]} Kf8 $11 {[%emt 0:10:02] Muzychuk's
experiment in the Sicilian gave Lagno no trouble at all. Black equalized
easily, traded off all the pieces and obtained a comfortable draw.} 19. Kf2 {
[%emt 0:00:15]} Rxe1 {[%emt 0:03:51]} 20. Rxe1 {[%emt 0:00:05]} Re8 {[%emt 0:
00:05]} 21. Rxe8+ {[%emt 0:08:53]} Kxe8 {[%emt 0:00:13]} 22. c4 {[%emt 0:00:03]
} Ke7 {[%emt 0:03:59]} 23. Kf3 {[%emt 0:00:53]} Ke6 {[%emt 0:03:11]} 24. Kg4 {
[%emt 0:01:55]} g6 {[%emt 0:13:49]} 25. Kf3 {[%emt 0:00:07]} dxc4 {[%emt 0:02:
16]} 26. dxc4 {[%emt 0:00:04]} f6 {[%emt 0:01:58]} 27. Ke4 {[%emt 0:01:34]}
fxg5 {[%emt 0:03:16]} 28. fxg5 {[%emt 0:00:04]} Kd6 {[%emt 0:00:02]} 29. Kf4 {
[%emt 0:00:16]} Ke6 {[%emt 0:00:06]} 30. Ke4 {[%emt 0:00:04]} Kd6 {[%emt 0:00:
26]} 31. Kf4 {[%emt 0:00:05]} Ke6 {[%emt 0:00:10]} 32. Ke4 {[%emt 0:00:06]} Kd6
{[%emt 0:00:29]} 1/2-1/2

[Event "Khanty-Mansiysk FIDE GP (Women)"]
[Site "Khanty-Mansiysk"]
[Date "2014.04.21"]
[Round "11"]
[White "Lagno, Kateryna"]
[Black "Ushenina, Anna"]
[Result "1-0"]
[ECO "B52"]
[WhiteElo "2543"]
[BlackElo "2501"]
[Annotator "ChessBase Website"]
[PlyCount "49"]
[EventDate "2014.04.09"]
[EventType "tourn"]
[EventRounds "11"]
[EventCountry "RUS"]
[EventCategory "10"]
[SourceTitle "CBM 160"]
[Source "ChessBase"]
[SourceDate "2014.05.15"]
[SourceVersion "1"]
[SourceVersionDate "2014.05.15"]
[SourceQuality "1"]
[TimeControl "40/5400+30:1800+30"]
[WhiteClock "1:30:00"]
[BlackClock "1:30:00"]

1. e4 {[%emt 0:00:00]} c5 {[%emt 0:00:00]} 2. Nf3 {[%emt 0:00:00]} d6 {[%emt 0:
00:00]} 3. Bb5+ {[%emt 0:00:00]} Bd7 {[%emt 0:00:01]} 4. Bxd7+ {[%emt 0:00:15]}
Qxd7 {[%emt 0:00:03]} 5. O-O {[%emt 0:00:13]} Nf6 {[%emt 0:00:05]} 6. d4 {
[%emt 0:00:15]} (6. Qe2 Nc6 7. Rd1 Rc8 8. c3 e6 9. d4 cxd4 10. Nxd4 Be7 11. Nf3
Qc7 12. c4 a6 13. b3 Nxe4 14. Qxe4 Bf6 15. Nc3 Bxc3 16. Rb1 Bf6 17. Bb2 Bxb2
18. Rxb2 Rd8 19. Rbd2 h6 20. g4 Ne7 21. Qf4 O-O 22. Qg3 e5 23. Nh4 b5 24. cxb5
axb5 25. Nf5 Nxf5 26. gxf5 Qe7 27. Rd5 b4 28. Qg4 Qf6 29. Qxb4 Qxf5 30. Rxd6
Rxd6 31. Qxd6 Re8 32. Rd3 Re6 33. Qd8+ Kh7 34. Rg3 Qb1+ 35. Kg2 Qe4+ {Karjakin,
S (2759)-Dominguez Perez,L (2754) Wijk aan Zee 2014 1/2-1/2 (71)}) 6... cxd4 {
[%emt 0:03:36]} 7. Qxd4 {[%emt 0:00:16]} Nc6 {[%emt 0:01:20]} 8. Qd3 {[%emt 0:
00:18]} g6 {[%emt 0:14:21]} 9. c4 {[%emt 0:00:32]} Bg7 {[%emt 0:00:52]} 10. Nc3
{[%emt 0:00:42]} O-O {[%emt 0:04:34]} 11. h3 {[%emt 0:00:19]} Rac8 $146 {
[%emt 0:07:55]} (11... Qd8 12. Be3 Nd7 13. Rac1 Qa5 14. Qb1 Rac8 15. Rfd1 Rfe8
16. Nd2 Nb6 17. c5 Bxc3 18. Rxc3 Na4 19. Ra3 dxc5 20. b3 Nc3 21. Rxa5 Nxb1 22.
Rxc5 Nxd2 23. Rxd2 Red8 24. Rcd5 a6 25. Rd7 Rxd7 26. Rxd7 b5 27. g4 e6 28. Rb7
h5 29. Rb6 hxg4 30. hxg4 Nb4 31. a4 Nc2 32. axb5 axb5 33. Rxb5 Nxe3 34. fxe3
Rc2 35. Kf1 Kf8 36. b4 Rc4 37. Ke2 Rxe4 38. Kf3 Rc4 39. Rb7 g5 40. Rb5 Ke7 41.
Rxg5 {Shomoev,A (2587)-Dominguez Perez,L (2757) Loo 2014 1/2-1/2}) 12. Rb1 {
[%emt 0:00:44]} Qe6 {[%emt 0:10:29]} 13. b3 {[%emt 0:03:47]} a6 {[%emt 0:06:01]
} 14. Bb2 {[%emt 0:06:03] The Ukrainian duel seemed as if it was heading for a
long game as Lagno utilized a Maroczy type set-up against Ushenina's Sicilian.
However Black played far too passively and without any real plan, allowing
Lagno to crash through in the center and win in only 24 moves using relatively
simple moves.} Nd7 {[%emt 0:12:29]} 15. Rfe1 {[%emt 0:05:14]} Nc5 {[%emt 0:01:
48]} 16. Qe2 {[%emt 0:15:38]} Rb8 {[%emt 0:02:18]} 17. Nd5 {[%emt 0:04:21]}
Bxb2 {[%emt 0:03:21]} 18. Rxb2 {[%emt 0:01:18]} Qd7 {[%emt 0:04:05]} 19. e5 {
[%emt 0:14:42]} Qd8 {[%emt 0:14:37]} 20. Rd2 {[%emt 0:01:43]} Kg7 {[%emt 0:06:
38]} 21. Qe3 {[%emt 0:05:29]} a5 {[%emt 0:02:34]} 22. exd6 {[%emt 0:03:34]}
exd6 {[%emt 0:00:05]} 23. Qc3+ {[%emt 0:00:32]} f6 {[%emt 0:00:08]} 24. Rde2 {
[%emt 0:01:16]} Kg8 {[%emt 0:00:43]} 25. Re8 {[%emt 0:01:27]} 1-0

[Event "Khanty-Mansiysk FIDE GP (Women)"]
[Site "Khanty-Mansiysk"]
[Date "2014.04.20"]
[Round "10"]
[White "Muzychuk, Anna"]
[Black "Hou, Yifan"]
[Result "1/2-1/2"]
[ECO "B52"]
[WhiteElo "2560"]
[BlackElo "2618"]
[Annotator "ChessBase Website"]
[PlyCount "54"]
[EventDate "2014.04.09"]
[EventType "tourn"]
[EventRounds "11"]
[EventCountry "RUS"]
[EventCategory "10"]
[SourceTitle "CBM 160"]
[Source "ChessBase"]
[SourceDate "2014.05.15"]
[SourceVersion "1"]
[SourceVersionDate "2014.05.15"]
[SourceQuality "1"]
[TimeControl "40/5400+30:1800+30"]
[WhiteClock "1:30:00"]
[BlackClock "1:30:00"]

1. e4 {[%emt 0:00:00]} c5 {[%emt 0:00:00]} 2. Nf3 {[%emt 0:00:00]} d6 {[%emt 0:
00:00]} 3. Bb5+ {[%emt 0:00:00]} Bd7 {[%emt 0:00:23]} 4. Bxd7+ {[%emt 0:00:00]}
Qxd7 {[%emt 0:00:06]} 5. c4 {[%emt 0:00:34]} Nf6 {[%emt 0:01:03]} 6. Nc3 {
[%emt 0:00:10]} g6 {[%emt 0:00:10]} 7. O-O {[%emt 0:01:24]} Bg7 {[%emt 0:01:38]
} 8. d4 {[%emt 0:00:37]} cxd4 {[%emt 0:00:07]} 9. Nxd4 {[%emt 0:00:04]} O-O {
[%emt 0:00:27]} 10. f3 {[%emt 0:02:44]} (10. b3 Nc6 11. Bb2 a6 12. Nd5 Nxd5 13.
exd5 Nxd4 14. Bxd4 Bxd4 15. Qxd4 b5 16. Rfe1 Rfc8 17. h4 bxc4 18. bxc4 h5 19.
Re4 Rc7 20. Rae1 Rac8 21. Qb6 a5 22. Qxa5 Rxc4 23. Rxe7 Qf5 24. Qd2 Qf4 25.
Qxf4 Rxf4 26. g3 Rf5 27. a4 Rxd5 28. Re8+ Rxe8 29. Rxe8+ Kg7 30. Ra8 Rd3 31. a5
{1/2-1/2 (31) Karjakin,S (2766)-Mamedyarov,S (2757) Khanty-Mansiysk 2014})
10... Rc8 {[%emt 0:04:19]} 11. b3 {[%emt 0:02:24]} d5 {[%emt 0:00:16]} 12. exd5
{[%emt 0:00:26]} Nxd5 {[%emt 0:00:11]} 13. Nxd5 {[%emt 0:00:15]} e6 {[%emt 0:
00:10]} 14. Bh6 {[%emt 0:02:30]} exd5 {[%emt 0:00:30]} 15. Bxg7 {[%emt 0:00:05]
} Kxg7 {[%emt 0:00:08]} 16. Nb5 {[%emt 0:03:34]} dxc4 {[%emt 0:04:41]} 17. Nd6
{[%emt 0:01:18]} Rd8 {[%emt 0:01:09]} 18. Nxb7 {[%emt 0:03:55]} Qxd1 {[%emt 0:
02:13]} 19. Rfxd1 {[%emt 0:00:07]} Rxd1+ {[%emt 0:00:06]} 20. Rxd1 {[%emt 0:00:
05]} cxb3 {[%emt 0:00:05]} 21. axb3 {[%emt 0:00:06]} Nc6 {[%emt 0:00:17]} 22.
Rd7 {[%emt 0:04:36]} a5 {[%emt 0:01:31]} 23. Rd6 $146 {[%emt 0:02:53]} (23. Nd6
Ne5 24. Re7 Kf6 25. Rb7 a4 26. Ne4+ Kg7 27. bxa4 Rxa4 28. Kf2 Ra2+ 29. Kg3 {
1/2-1/2 (31) Edouard,R (2686)-Vachier Lagrave,M (2711) Al Ain 2012}) 23... Rc8
{[%emt 0:01:47]} 24. Rd7 {[%emt 0:01:49] “After two losses and a terrible
blunder, I thought the aggressive approach today might bring even further
disappointments. So a draw against the tournament leader is far from being
bothersome, it is good to run away from the unfortunate series I had and try
again tomorrow”- Anna said during the press conference.} Ra8 {[%emt 0:01:48]}
25. Rd6 {[%emt 0:02:07]} Rc8 {[%emt 0:00:14]} 26. Rd7 {[%emt 0:00:06]} Ra8 {
[%emt 0:00:11]} 27. Rd6 {[%emt 0:00:14]} Rc8 {[%emt 0:00:08]} 1/2-1/2

[Event "Khanty-Mansiysk FIDE GP (Women)"]
[Site "Khanty-Mansiysk"]
[Date "2014.04.16"]
[Round "7"]
[White "Hou, Yifan"]
[Black "Ushenina, Anna"]
[Result "1-0"]
[ECO "B52"]
[WhiteElo "2618"]
[BlackElo "2501"]
[Annotator "ChessBase Website"]
[PlyCount "95"]
[EventDate "2014.04.09"]
[EventType "tourn"]
[EventRounds "11"]
[EventCountry "RUS"]
[EventCategory "10"]
[SourceTitle "CBM 160"]
[Source "ChessBase"]
[SourceDate "2014.05.15"]
[SourceVersion "1"]
[SourceVersionDate "2014.05.15"]
[SourceQuality "1"]
[TimeControl "40/5400+30:1800+30"]
[WhiteClock "1:30:00"]
[BlackClock "1:30:00"]

1. e4 {[%emt 0:00:00]} c5 {[%emt 0:00:00]} 2. Nf3 {[%emt 0:00:00]} d6 {[%emt 0:
00:04]} 3. Bb5+ {[%emt 0:00:14]} Bd7 {[%emt 0:00:11]} 4. c4 {[%emt 0:01:22]}
Nf6 {[%emt 0:02:15]} 5. Nc3 {[%emt 0:00:10]} g6 {[%emt 0:04:30]} 6. d4 {
[%emt 0:11:29]} cxd4 {[%emt 0:00:39]} 7. Nxd4 {[%emt 0:00:09]} Bg7 {[%emt 0:03:
23]} 8. Be3 {[%emt 0:00:26]} (8. O-O O-O 9. Bxd7 Qxd7 10. b3 Nc6 11. Bb2 a6 12.
Nxc6 Qxc6 13. Nd5 Nxd5 14. exd5 Qc5 15. Bxg7 Kxg7 16. Re1 e5 17. dxe6 fxe6 18.
Qd2 Rf6 19. Rad1 Raf8 20. Re2 e5 21. a4 R8f7 22. h3 Qb6 23. Qc2 Qb4 24. f3 b5
25. cxb5 axb5 26. Re4 Qa5 27. Rd5 Qb6+ 28. Kh2 bxa4 29. bxa4 Rc7 30. Qd2 Rc6
31. a5 Qc7 32. Re2 Rf4 33. Rexe5 dxe5 34. Rd7+ Rf7 35. Rxc7 Rcxc7 36. Qd6 Rfe7
37. a6 Rcd7 {Adams,M (2752)-Areshchenko,A (2720) Warsaw 2013 1/2-1/2}) 8... Nc6
{[%emt 0:17:13]} 9. f3 {[%emt 0:05:43]} O-O {[%emt 0:01:04]} 10. O-O {[%emt 0:
01:29]} Nxd4 {[%emt 0:23:02]} 11. Bxd4 {[%emt 0:00:11]} Bxb5 $146 {[%emt 0:02:
31]} (11... Be6 12. Nd5 {Munoz Pantoja,M (2457)-Kovchan,A (2577) Sitges op
39th 2013 (8) 1/2}) 12. cxb5 {[%emt 0:07:02]} Qa5 {[%emt 0:09:05]} 13. Qd3 {
[%emt 0:03:25]} Qb4 {[%emt 0:06:37]} 14. Rfd1 {[%emt 0:10:29]} Rfc8 {[%emt 0:
02:36]} 15. a3 {[%emt 0:10:39]} Qb3 {[%emt 0:01:52]} 16. Qe2 {[%emt 0:00:24]}
e6 {[%emt 0:02:01]} 17. Rd3 {[%emt 0:02:13]} Qc4 {[%emt 0:00:36]} 18. Rad1 {
[%emt 0:01:11]} Ne8 {[%emt 0:01:15]} 19. Qd2 $14 {[%emt 0:07:27][%csl Ra8]}
Bxd4+ {[%emt 0:02:55] The rematch between the World Champion and the ex-World
Champion culminated and yet another victory for Hou Yifan. Their previous
encounter, in the European Club Cup, also favored the Chinese. This time Hou
Yifan stayed away from the main theoretical routes, but Ushenina got an
acceptable position. At some point though she miscalculated the transition to
the endgame and her opponent accurately calculated the consequences of the
rook endgame, which ended with Hou Yifan simply queening her pawns.} 20. Rxd4 {
[%emt 0:00:01]} Qc5 {[%emt 0:00:12]} 21. Kh1 {[%emt 0:00:33]} Rc7 {[%emt 0:01:
00]} 22. h3 {[%emt 0:02:36]} Rac8 {[%emt 0:01:31]} 23. Qh6 {[%emt 0:01:49]} Qe5
{[%emt 0:01:33]} 24. Qh4 {[%emt 0:02:26]} Kg7 {[%emt 0:05:19]} 25. f4 {[%emt 0:
01:51]} Qf6 {[%emt 0:00:47]} 26. Qg3 {[%emt 0:00:47]} Rc4 {[%emt 0:01:05]} 27.
R4d3 {[%emt 0:01:52]} Qe7 {[%emt 0:01:07]} 28. Qe3 {[%emt 0:00:39]} b6 {
[%emt 0:01:52]} 29. a4 {[%emt 0:06:57]} Qc7 {[%emt 0:02:47]} 30. e5 {[%emt 0:
03:13]} dxe5 {[%emt 0:01:42]} 31. Rd7 {[%emt 0:01:15]} Qc5 {[%emt 0:00:13]} 32.
Qxc5 {[%emt 0:03:18]} R8xc5 {[%emt 0:00:05]} 33. Rxa7 {[%emt 0:00:41]} Nf6 {
[%emt 0:00:32]} 34. Rd6 {[%emt 0:02:25]} Ne4 {[%emt 0:02:01]} 35. Rxb6 {
[%emt 0:06:53]} Nxc3 {[%emt 0:00:06]} 36. bxc3 {[%emt 0:00:02]} Rxf4 {[%emt 0:
00:24]} 37. Rxe6 {[%emt 0:01:40]} Rxc3 {[%emt 0:00:35]} 38. Rxe5 {[%emt 0:00:
16]} Rf1+ {[%emt 0:02:07]} 39. Kh2 {[%emt 0:00:01]} Rc2 {[%emt 0:00:27]} 40. b6
{[%emt 0:00:00]} Rff2 {[%emt 0:00:00]} 41. Rg5 {[%emt 0:01:07]} Kh6 {[%emt 0:
08:09]} 42. h4 {[%emt 0:04:41]} f6 {[%emt 0:00:58]} 43. b7 {[%emt 0:01:51]} Rb2
{[%emt 0:02:12]} 44. Rb5 {[%emt 0:01:38]} Rxg2+ {[%emt 0:00:29]} 45. Kh3 {
[%emt 0:00:05]} Rh2+ {[%emt 0:02:01]} 46. Kg3 {[%emt 0:00:00]} Rbg2+ {[%emt 0:
08:33]} 47. Kf3 {[%emt 0:00:12]} Rf2+ {[%emt 0:01:19]} 48. Ke4 1-0